fUSD/lending_fUSD_20250905
["ID","MTS","AMOUNT","RATE_DAILY","PERIOD"]
[383636466,1757053832796,-500.0,0.00024685,2]
[383636467,1757053832805,-500.0,0.00024685,2]
[383636468,1757053832817,-151.0,0.00024685,2]
[383636469,1757053832827,-500.0,0.00024685,2]
[383636470,1757053832836,-151.0,0.00024685,2]
[383636471,1757053832845,-500.0,0.00024685,2]
[383636472,1757053832855,-151.0,0.00024685,2]
[383636473,1757053832864,-281.68165287,0.00024685,2]
[383636474,1757053832873,-1000.0,0.00024685,2]
[383636475,1757053832883,-1000.0,0.00024685,2]
[383636476,1757053832892,-1000.0,0.00024685,2]
[383636477,1757053832901,-1000.0,0.00024685,2]
[383636478,1757053832911,-158.69161069,0.00024685,2]
[383636479,1757053832920,-250.0,0.00024685,2]
[383636480,1757053832930,-250.0,0.00024685,2]
[383636481,1757053832939,-250.0,0.00024685,2]
[383636482,1757053832948,-600.0,0.00024685,2]
[383636483,1757053832957,-529.61228655,0.00024685,2]
[383636484,1757053832966,-250.0,0.00024685,2]
[383636485,1757053832975,-250.0,0.00024685,2]
[383636486,1757053832984,-250.0,0.00024685,2]
[383636487,1757053832994,-250.0,0.00024685,2]
[383636488,1757053833004,-250.0,0.00024685,2]
[383636489,1757053833014,-250.0,0.00024685,2]
[383636490,1757053833023,-382.93506281,0.00024685,2]
[383636491,1757053833033,-153.15478517,0.00024685,2]
[383636492,1757053833042,-168.0,0.00024693,2]
[383636493,1757053833051,-1716.1896901,0.000247,2]
[383636494,1757053833061,-156.587,0.0002474,2]
[383636495,1757053833071,-500.0,0.0002474,2]
[383636496,1757053833080,-162.380719,0.00024795,2]
[383636497,1757053833090,-500.0,0.00024795,2]
[383636498,1757053833099,-500.0,0.000248,9]
[383636499,1757053833110,-4512.27837872,0.0002483,2]
[383636500,1757053833119,-958.9191,0.00024831,2]
[383636501,1757053833129,-4250.10534606,0.00024831,2]
[383636502,1757053833145,-30418.00195394,0.00024831,2]
[383636503,1757053833154,-1154.56129618,0.0002488,7]
[383636504,1757053833164,-693.18,0.00024884,2]
[383636505,1757053833173,-1100.0,0.000249,9]
[383636506,1757053833183,-2104.3453,0.000249,2]
[383636507,1757053833192,-3974.67049177,0.000249,2]
[383636508,1757053833201,-557.30571375,0.000249,5]
[383636509,1757053833211,-300.0,0.0002493,17]
[383636510,1757053833220,-410.08903714,0.0002493,2]
[383636511,1757053833229,-410.91303889,0.0002493,2]
[383636512,1757053833239,-477.59877926,0.0002493,2]
[383636513,1757053833248,-400.0,0.0002493,2]
[383636514,1757053833257,-411.63919384,0.0002493,2]
[383636515,1757053833267,-403.82758838,0.0002493,2]
[383636516,1757053833277,-400.0,0.0002493,2]
[383636517,1757053833286,-13.52038102,0.0002493,2]
[383636518,1757053833301,-388.60116438,0.0002493,2]
[383636519,1757053833310,-400.0,0.0002493,2]
[383636520,1757053833320,-400.0,0.0002493,2]
[383636521,1757053833329,-116.39883562,0.0002493,2]
[383636522,1757053833520,-283.60116438,0.0002493,2]
[383636523,1757053833530,-418.15839468,0.0002493,2]
[383636524,1757053833540,-163.0,0.00024932,7]
[383636525,1757053833549,-256.4,0.0002499,2]
[383636526,1757053833560,-400.0,0.00024999,2]
[383636527,1757053833569,-402.5653293,0.00024999,2]
[383636528,1757053833580,-422.17032319,0.00024999,2]
[383636529,1757053833589,-400.0,0.00024999,2]
[383636530,1757053833599,-422.87697027,0.00024999,2]
[383636531,1757053833608,-158.0,0.00025,7]
[383636532,1757053833618,-163.0,0.00025,7]
[383636533,1757053833627,-12670.75785515,0.00025,2]
[383636534,1757053833640,-87329.24214485,0.00025,2]
[383636535,1757053833649,-850.0,0.00025,20]
[383636536,1757053833659,-403.15642055,0.00025,2]
[383636537,1757053833669,-168.0,0.00025003,2]
[383636538,1757053833679,-168.0,0.00025052,2]
[383636539,1757053833688,-212.63008182,0.00025054,2]
[383636540,1757053833698,-160.0,0.00025054,2]
[383636541,1757053833707,-168.0,0.00025075,2]
[383636542,1757053833716,-155.01880601,0.00025084,2]
[383636543,1757053833726,-7093.34534883,0.00025084,2]
[383636544,1757053833735,-171.04918136,0.00025086,3]
[383636545,1757053833744,-168.0,0.0002509,2]
[383636546,1757053833754,-5000.0,0.00025093,2]
[383636547,1757053833763,-323.92818328,0.00025093,2]
[383636548,1757053833773,-400.0,0.00025093,2]
[383636549,1757053833785,-400.0,0.00025093,2]
[383636550,1757053833795,-400.0,0.00025093,2]
[383636551,1757053833805,-400.0,0.00025093,2]
[383636552,1757053833817,-400.0,0.00025093,2]
[383636553,1757053833826,-400.0,0.00025093,2]
[383636554,1757053833836,-400.0,0.00025093,2]
[383636555,1757053833845,-400.0,0.00025093,2]
[383636556,1757053833855,-400.0,0.00025093,2]
[383636557,1757053833864,-400.0,0.00025093,2]
[383636558,1757053833873,-400.0,0.00025093,2]
[383636559,1757053833883,-400.0,0.00025093,2]
[383636560,1757053833892,-400.0,0.00025093,2]
[383636561,1757053833901,-400.0,0.00025093,2]
[383636562,1757053833911,-400.0,0.00025093,2]
[383636563,1757053833920,-400.0,0.00025093,2]
[383636564,1757053833929,-400.0,0.00025093,2]
[383636565,1757053833939,-400.0,0.00025093,2]
[383636566,1757053833948,-400.0,0.00025093,2]
[383636567,1757053833958,-400.0,0.00025093,2]
[383636568,1757053833968,-400.0,0.00025093,2]
[383636569,1757053833977,-401.7783889,0.00025093,2]
[383636570,1757053833987,-500.0,0.00025093,2]
[383636571,1757053833997,-400.0,0.00025093,2]
[383636572,1757053834006,-400.0,0.00025093,2]
[383636573,1757053834016,-400.0,0.00025093,2]
[383636574,1757053834025,-253.56776239,0.00025093,2]
[383636575,1757053834035,-402.6462974,0.00025093,2]
[383636576,1757053834044,-400.0,0.00025093,2]
[383636577,1757053834054,-400.0,0.00025093,2]
[383636578,1757053834070,-400.0,0.00025093,2]
[383636579,1757053834079,-400.0,0.00025093,2]
[383636580,1757053834090,-548.13,0.00025093,2]
[383636581,1757053834100,-500.0,0.00025093,2]
[383636582,1757053834110,-401.9307366,0.00025093,2]
[383636583,1757053834119,-400.0,0.00025093,2]
[383636584,1757053834129,-400.0,0.00025093,2]
[383636585,1757053834139,-10000.0,0.00025094,2]
[383636586,1757053834149,-168.0,0.00025095,2]
[383636587,1757053834158,-168.0,0.00025095,2]
[383636588,1757053834167,-168.0,0.00025099,2]
[383636589,1757053834177,-2571.0,0.000251,60]
[383636590,1757053834187,-1007.0,0.000251,2]
[383636591,1757053834196,-1000.0,0.000251,2]
[383636592,1757053834205,-2097.6146,0.00025103,2]
[383636593,1757053834215,-487.0,0.00025107,2]
[383636594,1757053834225,-150.0,0.00025117,2]
[383636595,1757053834235,-152.05753347,0.00025117,2]
[383636596,1757053834244,-218.11503364,0.00025117,2]
[383636597,1757053834254,-150.0,0.00025117,2]
[383636598,1757053834263,-150.63314591,0.00025117,2]
[383636599,1757053834274,-151.9347926,0.00025117,2]
[383636600,1757053834283,-152.58231716,0.00025117,2]
[383636601,1757053834293,-151.0291402,0.00025117,2]
[383636602,1757053834302,-150.0,0.00025117,2]
[383636603,1757053834312,-150.0,0.00025117,2]
[383636604,1757053834322,-150.3827259,0.00025117,2]
[383636605,1757053834331,-152.45310476,0.00025117,2]
[383636606,1757053834340,-150.0,0.00025117,2]
[383636607,1757053834350,-150.0,0.00025117,2]
[383636608,1757053834361,-150.0,0.00025117,2]
[383636609,1757053834372,-150.0,0.00025117,2]
[383636610,1757053834381,-150.0,0.00025117,2]
[383636611,1757053834391,-150.0,0.00025117,2]
[383636612,1757053834400,-152.5918111,0.00025117,2]
[383636613,1757053834410,-150.0,0.00025117,2]
[383636614,1757053834419,-150.0,0.00025117,2]
[383636615,1757053834429,-150.0,0.00025117,2]
[383636616,1757053834438,-693.18,0.0002512,2]
[383636617,1757053834448,-693.18,0.0002514,2]
[383636618,1757053834458,-924.0,0.00025141,2]
[383636619,1757053834468,-4163.0,0.00025141,2]
[383636620,1757053834477,-896.0,0.00025141,2]
[383636621,1757053834487,-489.0,0.00025148,2]
[383636622,1757053834496,-223.0,0.0002515,2]
[383636623,1757053834506,-23056.8193756,0.00025164,3]
[383636624,1757053834515,-487.0,0.00025171,2]
[383636625,1757053834524,-500.0,0.00025173,2]
[383636626,1757053834534,-500.0,0.00025173,2]
[383636627,1757053834544,-23056.8193756,0.00025173,3]
[383636628,1757053834554,-256.4,0.00025173,2]
[383636629,1757053834564,-23056.8193756,0.00025174,3]
[383636630,1757053834573,-6246.87504828,0.00025174,3]
[383636631,1757053834587,-16809.94432732,0.00025174,3]
[383636632,1757053834596,-62737.70686223,0.00025183,3]
[383636633,1757053834608,-6432.75126447,0.00025183,3]
[383636634,1757053834618,-8330.48558354,0.00025183,3]
[383636636,1757053837500,-500.0,0.00020889,2]
[383636637,1757053837509,-500.0,0.00020889,2]
[383636638,1757053837519,-255.25607098,0.00020889,2]
[383636804,1757053842824,-274.74392902,0.00020889,2]
[383636805,1757053842834,-214.09320551,0.00020994,2]
[383636806,1757053842844,-363.81204053,0.00020994,2]
[383636807,1757053842855,-205.17106002,0.00020994,2]
[383636808,1757053842864,-400.0,0.00024999,2]
[383636809,1757053842874,-400.0,0.00025093,2]
[383636810,1757053842884,-400.0,0.00025093,2]
[383636811,1757053842893,-400.0,0.00025093,2]
[383636812,1757053842903,-400.0,0.00025093,2]
[383636813,1757053842912,-400.0,0.00025093,2]
[383636814,1757053842923,-400.0,0.00025093,2]
[383636815,1757053842932,-401.72368471,0.00025093,2]
[383636816,1757053842943,-770.10608021,0.00025141,2]
[383637038,1757054039881,2000.0,0.00030136,120]
[383637039,1757054639520,154.66,0.00013699,2]
[383637040,1757054761951,1808.11484618,0.00018553,2]
[383637041,1757054967361,155.51,0.00011996,2]
[383637042,1757054967574,155.51,0.00017994,2]
[383637045,1757055031716,-574.94725319,0.00020993,2]
[383637046,1757055031727,-1509.8770813,0.00020994,2]
[383637047,1757055031737,-3723.32241217,0.00021861,2]
[383637048,1757055031892,-1130.83833533,0.00021861,2]
[383637049,1757055031956,-2920.77293591,0.00021861,2]
[383637050,1757055031969,-3448.48204322,0.00021861,2]
[383637202,1757055037846,-254.66842837,0.0002186,2]
[383637203,1757055037856,-150.27882482,0.00021861,2]
[383637379,1757055039730,-4813.72651107,0.00021861,2]
[383637381,1757055039739,-150.0,0.00022858,4]
[383637383,1757055039749,-155.51,0.00023992,2]
[383637385,1757055039758,-287.26,0.00024054,2]
[383637387,1757055039768,-500.0,0.00024057,2]
[383637389,1757055039777,-399.41,0.00024126,7]
[383637391,1757055039787,-178.07,0.00024161,2]
[383637393,1757055039796,-221.0,0.000242,2]
[383637395,1757055039805,-1114.0087337,0.00024663,2]
[383637397,1757055039815,-400.0,0.000248,9]
[383637399,1757055039824,-396.12,0.00024882,2]
[383637401,1757055039833,-300.0,0.00024898,2]
[383637403,1757055039842,-1200.0,0.00024898,2]
[383637405,1757055039851,-300.0,0.00024898,2]
[383637407,1757055039860,-4061.05054083,0.00024899,2]
[383637409,1757055039870,-1000.0,0.000249,2]
[383637411,1757055039879,-900.0,0.000249,9]
[383637413,1757055039889,-2989.09472738,0.000249,2]
[383638003,1757055045789,-853.08674793,0.000249,2]
[383638004,1757055045799,-163.0,0.00024932,7]
[383638005,1757055045808,-155.65057094,0.00024969,2]
[383638426,1757055370596,-1200.0,0.0002099,2]
[383638427,1757055370621,-500.0,0.00020991,2]
[383638428,1757055370646,-416.58573742,0.00020991,2]
[383638429,1757055370671,-330.2013729,0.00020991,2]
[383638430,1757055370697,-500.0,0.00020991,2]
[383638431,1757055370723,-605.89246281,0.00020991,2]
[383638432,1757055390823,-316.67508215,0.00022404,2]
[383638433,1757055390850,-194.96872995,0.00022404,2]
[383638434,1757055390876,-14004.64557085,0.00022406,2]
[383638435,1757055392424,221.6725575,0.00022405,2]
[383638441,1757055444391,542.72473693,0.00022405,2]
[383638442,1757055444436,167.31038366,0.00022405,2]
[383638445,1757055615931,1971.540532,0.00022929,2]
[383638446,1757055696697,22027.78283383,0.00022929,2]
[383638454,1757055813307,154.65,0.00013699,2]
[383638455,1757055901021,168.84,0.00011989,2]
[383638463,1757056232048,-192.86475085,0.00022829,2]
[383638464,1757056232057,-36.78846823,0.00022928,2]
[383638465,1757056232071,-813.21153177,0.00022928,2]
[383638466,1757056232081,-491.78846823,0.00022929,2]
[383638467,1757056232093,-6277.94931159,0.00022929,2]
[383638468,1757056232109,-42900.82420325,0.00022929,2]
[383638469,1757056232119,-158.9815039,0.00022929,2]
[383638470,1757056232128,-257.91778498,0.00023849,2]
[383638471,1757056232138,-178.07,0.00023953,2]
[383638473,1757056232149,-666.0,0.00023993,3]
[383638475,1757056232158,-4435.3173374,0.00024,2]
[383638477,1757056232168,-229.8,0.00024034,2]
[383638478,1757056232179,-213.0,0.000241,2]
[383638479,1757056232188,-3010.69135387,0.00024584,2]
[383638480,1757056232198,-4248.729775,0.00024614,2]
[383638481,1757056232207,-400.0,0.000247,9]
[383638482,1757056232216,-438.54,0.00024791,2]
[383638483,1757056232226,-900.0,0.000248,9]
[383638484,1757056232236,-438.54,0.00024809,2]
[383638485,1757056232246,-4348.16557207,0.00024892,2]
[383638486,1757056232255,-2130.70700348,0.00024897,3]
[383638487,1757056232265,-21153.0,0.00024897,2]
[383638488,1757056232275,-4163.0,0.00024897,2]
[383638489,1757056232284,-1175.0,0.00024897,2]
[383638490,1757056232292,-1927.22,0.00024899,2]
[383638491,1757056232301,-1400.0,0.000249,9]
[383638492,1757056232310,-3718.37784983,0.000249,2]
[383638493,1757056232319,-154.65,0.00024907,2]
[383638494,1757056232340,-172.0,0.00024932,7]
[383638495,1757056232353,-200.0,0.00024969,2]
[383638496,1757056232362,-1287.7136,0.00024969,2]
[383638497,1757056232372,-151.0,0.00024977,2]
[383638498,1757056232381,-557.30571375,0.00024981,5]
[383638499,1757056232391,-7492.54782633,0.0002499,2]
[383638500,1757056232401,-556.448,0.00024992,8]
[383638501,1757056232410,-28860.1145,0.00024992,2]
[383638502,1757056232420,-30471.5381,0.00024992,2]
[383638503,1757056232429,-2810.0538,0.00024992,2]
[383638504,1757056232439,-1332.69,0.00024999,2]
[383638505,1757056232449,-12228.04611212,0.00025,3]
[383638506,1757056232459,-1019.0,0.00025,3]
[383638507,1757056232469,-1000.0,0.00025,4]
[383638508,1757056232478,-1001.0,0.00025,3]
[383638509,1757056232488,-1000.0,0.00025,3]
[383638510,1757056232499,-158.0,0.00025,7]
[383638511,1757056232509,-172.0,0.00025,7]
[383638512,1757056232518,-212.63008182,0.00025008,2]
[383638513,1757056232528,-160.0,0.00025008,2]
[383638514,1757056232538,-160.0,0.00025008,2]
[383638515,1757056232548,-160.0,0.00025008,2]
[383638516,1757056232557,-514.736181,0.00025012,2]
[383638517,1757056232567,-438.54,0.0002504,2]
[383638518,1757056232577,-438.54,0.0002506,2]
[383638519,1757056232591,-150.0,0.00025066,2]
[383638520,1757056232601,-813.66425611,0.00025068,2]
[383638521,1757056232611,-1037.02307151,0.00025069,2]
[383638522,1757056232621,-438.54,0.0002507,2]
[383638523,1757056232631,-192.11,0.00025071,2]
[383638524,1757056232641,-1260.38188691,0.00025071,2]
[383638525,1757056232651,-1483.74070232,0.00025073,2]
[383638526,1757056232660,-1707.09951772,0.00025074,2]
[383638527,1757056232670,-1930.45833312,0.00025076,2]
[383638528,1757056232680,-2153.81714852,0.00025078,2]
[383638529,1757056232689,-2377.17596393,0.00025079,2]
[383638530,1757056232699,-400.0,0.0002508,2]
[383638531,1757056232709,-400.0,0.0002508,2]
[383638532,1757056232719,-400.0,0.0002508,2]
[383638533,1757056232729,-400.0,0.0002508,2]
[383638534,1757056232739,-400.0,0.0002508,2]
[383638535,1757056232748,-400.0,0.0002508,2]
[383638536,1757056232757,-400.0,0.0002508,2]
[383638537,1757056232768,-275.07,0.0002508,2]
[383638538,1757056232777,-400.0,0.0002508,2]
[383638539,1757056232788,-400.0,0.0002508,2]
[383638540,1757056232798,-390.28222866,0.0002508,2]
[383638541,1757056232807,-400.0,0.0002508,2]
[383638542,1757056232816,-400.0,0.0002508,2]
[383638543,1757056232826,-400.0,0.0002508,2]
[383638544,1757056232835,-400.0,0.0002508,2]
[383638545,1757056232844,-400.0,0.0002508,2]
[383638546,1757056232854,-405.83020707,0.0002508,2]
[383638547,1757056232863,-400.0,0.0002508,2]
[383638548,1757056232873,-400.0,0.0002508,2]
[383638549,1757056232882,-400.0,0.0002508,2]
[383638550,1757056232891,-500.0,0.0002508,2]
[383638551,1757056232900,-400.0,0.0002508,2]
[383638552,1757056232909,-198.823891,0.0002508,2]
[383638553,1757056232918,-400.0,0.0002508,2]
[383638554,1757056232928,-400.0,0.0002508,2]
[383638555,1757056232937,-400.0,0.0002508,2]
[383638556,1757056232946,-500.0,0.0002508,2]
[383638557,1757056232955,-400.0,0.0002508,2]
[383638558,1757056232964,-400.0,0.0002508,2]
[383638559,1757056232973,-400.0,0.0002508,2]
[383638560,1757056232983,-400.0,0.0002508,2]
[383638561,1757056232992,-67326.63851351,0.00025081,3]
[383638562,1757056233005,-2123.8493436,0.00025081,3]
[383638563,1757056233022,-24914.67784215,0.00025081,3]
[383638564,1757056233033,-1266.35543674,0.00025081,3]
[383638565,1757056233066,-300.67669939,0.00025081,3]
[383638567,1757056238031,-266.98251242,0.00022928,2]
[383638568,1757056238041,-535.07810611,0.00022928,2]
[383638569,1757056238053,-194.60109882,0.00022928,2]
[383638570,1757056238062,-400.0,0.0002508,2]
[383638571,1757056238072,-400.0,0.0002508,2]
[383638572,1757056238081,-400.0,0.0002508,2]
[383638573,1757056238090,-3290.39150159,0.00025081,3]
[383638574,1757056238134,-400.0,0.0002508,2]
[383638575,1757056238144,-3135.46983571,0.00025081,3]
[383638762,1757056240085,-896.0,0.00024897,2]
[383638764,1757056240095,-400.0,0.0002508,2]
[383638766,1757056240108,-880.80415259,0.00025081,3]
[383639598,1757056485481,572.50094377,0.00030136,120]
[383639603,1757056980239,154.67,0.00013699,2]
[383639611,1757057277096,23776.13765456,0.0002,2]
[383639631,1757057432145,-1200.0,0.00021998,2]
[383639632,1757057432155,-300.0,0.00021998,2]
[383639633,1757057432164,-500.0,0.00021999,2]
[383639634,1757057432174,-367.84875133,0.00021999,2]
[383639635,1757057432183,-303.72174441,0.00021999,2]
[383639636,1757057432192,-37150.15345982,0.00022,4]
[383639637,1757057432201,-857.05776805,0.00022,2]
[383639638,1757057432211,-223.9,0.00022926,2]
[383639639,1757057432220,-212.0,0.00023,2]
[383639640,1757057432229,-270.55,0.00023884,2]
[383639641,1757057432244,-257.91778498,0.00023891,2]
[383639642,1757057432254,-420.0,0.00023905,2]
[383639643,1757057432264,-1385.2477223,0.00023906,2]
[383639644,1757057432275,-200.0,0.0002399,2]
[383639645,1757057432284,-5000.00992146,0.00024,5]
[383639646,1757057432293,-164.82,0.00024017,2]
[383639647,1757057432302,-238.97,0.00024022,2]
[383639648,1757057432314,-160.0,0.00024039,7]
[383639649,1757057432324,-610.0,0.0002405,2]
[383639650,1757057432333,-250.0,0.00024091,2]
[383639651,1757057432343,-250.0,0.00024157,2]
[383639652,1757057432352,-208.0,0.0002418,2]
[383639653,1757057432363,-199.0,0.00024666,2]
[383639654,1757057432373,-746.10500001,0.00024695,2]
[383639655,1757057432382,-300.0,0.000247,9]
[383639656,1757057432392,-175.4,0.00024742,2]
[383639657,1757057432403,-171.53,0.00024781,2]
[383639658,1757057432413,-700.0,0.000248,9]
[383639659,1757057432423,-171.53,0.0002482,2]
[383639660,1757057432433,-1154.56129618,0.0002488,7]
[383639661,1757057432442,-487.0,0.00024884,2]
[383639662,1757057432452,-1000.0,0.000249,9]
[383639663,1757057432461,-3722.65184756,0.000249,2]
[383639664,1757057432471,-151.0,0.00024932,7]
[383639665,1757057432481,-151.0,0.00024965,2]
[383639666,1757057432492,-2139.95107261,0.00024969,2]
[383639667,1757057432517,-1690.10510132,0.00024969,2]
[383639669,1757057432528,-92.84470726,0.00024969,2]
[383639671,1757057432538,-372.07170952,0.0002497,2]
[383639673,1757057432547,-1793.66321482,0.00024971,2]
[383639674,1757057432559,-310.68208518,0.00024971,2]
[383639675,1757057432570,-5475.84782976,0.00024979,2]
[383639676,1757057432594,-968.1222325,0.00024979,2]
[383639685,1757057438037,-374.55467427,0.00021998,2]
[383639686,1757057438047,-186.88775869,0.00021998,2]
[383639687,1757057438056,-156.08587709,0.00024969,2]
[383639688,1757057438066,-336.79324954,0.00024979,2]
[383639689,1757057438075,-155.01880595,0.00024979,2]
[383639690,1757057438301,-566.08,0.0002498,2]
[383639691,1757057438311,-662.541,0.00024981,8]
[383639692,1757057438322,-10000.0,0.00024991,2]
[383639693,1757057438331,-151.0,0.00025,7]
[383639694,1757057438340,-2000.99691032,0.00025,3]
[383639695,1757057438350,-171.53,0.0002503,2]
[383639696,1757057438359,-168.0,0.00025049,2]
[383639698,1757057438368,-168.0,0.00025052,2]
[383639700,1757057438377,-192.11,0.0002506,2]
[383639702,1757057438387,-21992.5643049,0.00025061,3]
[383639703,1757057438396,-1159.5515548,0.00025062,2]
[383639704,1757057438406,-274.82486132,0.00025062,2]
[383639705,1757057438417,-2258.1971102,0.00025062,2]
[383639706,1757057438428,-3212.77408827,0.00025062,2]
[383639708,1757057438451,-5519.60124017,0.00025062,2]
[383639716,1757057440591,-276.78,0.00025062,2]
[383640059,1757057444274,-3830.16044374,0.00025062,2]
[383640060,1757057444283,-1000.0,0.00025067,2]
[383640061,1757057444293,-151.0,0.00025068,7]
[383640062,1757057444303,-43985.1286098,0.00025068,3]
[383640063,1757057444313,-21992.5643049,0.00025069,3]
[383640064,1757057444322,-404.03656857,0.00025069,2]
[383640065,1757057444331,-400.0,0.00025069,2]
[383640066,1757057444340,-402.1470969,0.00025069,2]
[383640067,1757057444350,-400.58511941,0.00025069,2]
[383640068,1757057444359,-310.99212265,0.00025069,2]
[383640069,1757057444368,-400.0,0.00025069,2]
[383640070,1757057444377,-400.0,0.00025069,2]
[383640071,1757057444387,-400.0,0.00025069,2]
[383640072,1757057444396,-400.0,0.00025069,2]
[383640073,1757057444405,-400.0,0.00025069,2]
[383640074,1757057444414,-400.0,0.00025069,2]
[383640075,1757057444424,-401.78193976,0.00025069,2]
[383640076,1757057444433,-389.9487013,0.00025069,2]
[383640077,1757057444443,-404.14737139,0.00025069,2]
[383640078,1757057444453,-335.03146995,0.00025069,2]
[383640079,1757057444462,-400.0,0.00025069,2]
[383640080,1757057444472,-400.0,0.00025069,2]
[383640081,1757057444481,-410.31,0.00025069,2]
[383640082,1757057444491,-400.0,0.00025069,2]
[383640083,1757057444503,-171.53,0.0002507,2]
[383640084,1757057444513,-400.0,0.0002507,2]
[383640086,1757057444523,-87970.2572195,0.0002507,3]
[383640088,1757057444532,-22847.9898867,0.0002507,3]
[383640090,1757057444541,-400.0,0.0002507,2]
[383640091,1757057444551,-400.0,0.0002507,2]
[383640093,1757057444561,-400.0,0.0002507,2]
[383640094,1757057444570,-512.78767003,0.0002507,2]
[383640095,1757057444581,-400.0,0.0002507,2]
[383640096,1757057444591,-400.0,0.0002507,2]
[383640097,1757057444600,-400.0,0.0002507,2]
[383640098,1757057444609,-400.0,0.0002507,2]
[383640099,1757057444619,-400.0,0.0002507,2]
[383640100,1757057444628,-400.0,0.0002507,2]
[383640101,1757057444638,-400.0,0.0002507,2]
[383640102,1757057444647,-400.0,0.0002507,2]
[383640103,1757057444657,-400.0,0.0002507,2]
[383640104,1757057444666,-400.0,0.0002507,2]
[383640105,1757057444675,-400.0,0.0002507,2]
[383640106,1757057444684,-400.0,0.0002507,2]
[383640107,1757057444694,-179.94643521,0.0002507,2]
[383640108,1757057444703,-400.0,0.0002507,2]
[383640109,1757057444713,-188.27634439,0.0002507,2]
[383640110,1757057444723,-400.0,0.0002507,2]
[383640111,1757057444732,-400.0,0.0002507,2]
[383640112,1757057444742,-183.451804,0.0002507,2]
[383640113,1757057444752,-167.505109,0.0002507,2]
[383640114,1757057444761,-400.0,0.0002507,2]
[383640115,1757057444771,-208.84338288,0.0002507,2]
[383640116,1757057444780,-400.0,0.0002507,2]
[383640117,1757057444790,-400.0,0.0002507,2]
[383640118,1757057444799,-245.730894,0.0002507,7]
[383640119,1757057444809,-254.436363,0.0002507,2]
[383640120,1757057444818,-795.74,0.0002507,2]
[383640121,1757057444829,-400.0,0.0002507,2]
[383640122,1757057444838,-400.0,0.0002507,2]
[383640123,1757057444847,-60850.81514163,0.0002507,3]
[383640124,1757057444857,-65977.6929146,0.00025071,3]
[383640125,1757057444867,-91391.9595466,0.00025071,3]
[383640126,1757057444879,-109962.821524,0.00025071,3]
[383640127,1757057444888,-91391.9595466,0.00025071,3]
[383640128,1757057444898,-921.98,0.00025079,2]
[383640129,1757057444907,-697.9,0.00025079,2]
[383640130,1757057444917,-400.0,0.00025079,2]
[383640131,1757057444926,-400.0,0.00025079,2]
[383640132,1757057444936,-400.0,0.00025079,2]
[383640133,1757057444946,-431.33544424,0.00025079,2]
[383640134,1757057444955,-400.0,0.00025079,2]
[383640135,1757057444965,-400.0,0.00025079,2]
[383640136,1757057444974,-400.0,0.00025079,2]
[383640137,1757057444984,-400.0,0.00025079,2]
[383640138,1757057444994,-400.0,0.00025079,2]
[383640139,1757057445004,-400.0,0.00025079,2]
[383640140,1757057445014,-150.98905012,0.00025079,2]
[383640141,1757057445024,-400.0,0.00025079,2]
[383640142,1757057445033,-400.0,0.00025079,2]
[383640143,1757057445043,-406.31,0.00025079,2]
[383640144,1757057445053,-400.0,0.00025079,2]
[383640145,1757057445063,-400.0,0.00025079,2]
[383640146,1757057445073,-400.0,0.00025079,2]
[383640147,1757057445083,-400.0,0.00025079,2]
[383640148,1757057445092,-400.0,0.00025079,2]